Cogmind - Beta 13 X1 *** ADVENTURER MODE // 2023.07.10 @ 18:44:54 Player: soymachine Result: Destroyed by LB-N8J(z) with Zionite Laser-S Performance ------------- Evolutions (1) 500 Regions Visited (6) 1200 Robots Destroyed (27) 135 Value Destroyed (815) 815 Prototype IDs (5) 100 Alien Tech Used (0) 0 Bonus (1522) 1522 TOTAL SCORE: 4272 Bonus ------- Met Imprinter 300 Was Imprinted 300 Destroyed Z-Imprinter 1000 Friendly Fire -78 Cogmind --------- Core Integrity 0/400 Matter 91/300 Energy 19/100 System Corruption 0% Temperature Cool (9) Movement Core (100) Ox1 Location -7/Deep Caves Parts ------- > --- POWER (1) -------- (None) > --- PROPULSION (3) --- (None) > --- UTILITY (3) ------ Signal Interpreter Makeshift Hacking Suite > --- WEAPON (2) ------- Heavy Riot Gun Makeshift Sword > --- INVENTORY (5) ---- Hacking Drone Bay (1/1) Beamcaster GAL Module Peak State ------------ > --- POWER ------------ Makeshift Power Source > --- PROPULSION ------- Aluminum Leg Aluminum Leg Aluminum Leg > --- UTILITY ---------- Medium Storage Unit Signal Interpreter Hacking Drone Bay > --- WEAPON ----------- Heavy Riot Gun Beamcaster > --- INVENTORY -------- Aluminum Leg Makeshift Armor Plating Makeshift Hacking Suite Thief Drone Bay EM Shotgun Spread Laser Assault Rifle Makeshift Sword CR-A16's Pointy Stick GAL Module [Rating: 30] Favorites ----------- Power Ion Engine Engine Ion Engine Propulsion Aluminum Leg Treads Light Treads Leg Aluminum Leg Utility Signal Interpreter Device Seismic Detector Storage Medium Storage Unit Processor Signal Interpreter Hackware Makeshift Hacking Suite Protection Utility Shielding Weapon Assault Rifle Energy Gun Beamcaster Ballistic Gun Assault Rifle Launcher Grenade Launcher Slashing Weapon Makeshift Sword Piercing Weapon CR-A16's Pointy Stick Build | -11 -10 -10 -9 -9 -7 -7 ------- Run | Jun Mat Min Mat Min Zio Dee Slots Evolved 2 | . . . 2 . . . Power . | . . . . . . . Propulsion 1 | . . . 1 . . . Utility 1 | . . . 1 . . . Weapon . | . . . . . . . Parts Attached 39 | . 5 9 5 1 9 10 Power 2 | . . 1 . . 1 . Engine 2 | . . 1 . . 1 . Core . | . . . . . . . Reactor . | . . . . . . . Propulsion 5 | . 2 1 2 . . . Treads 2 | . 2 . . . . . Leg 3 | . . 1 2 . . . Wheel . | . . . . . . . Hover . | . . . . . . . Flight . | . . . . . . . Utility 12 | . 2 1 2 1 3 3 Device 3 | . . 1 . 1 1 . Storage 2 | . 1 . 1 . . . Processor 1 | . . . 1 . . . Hackware 1 | . . . . . . 1 Protection 5 | . 1 . . . 2 2 Artifact . | . . . . . . . Weapon 20 | . 1 6 1 . 5 7 Energy Gun 5 | . . . . . 2 3 Energy Cannon . | . . . . . . . Ballistic Gun 5 | . 1 3 1 . . . Ballistic Cannon . | . . . . . . . Launcher 8 | . . 3 . . 2 3 Special Weapon . | . . . . . . . Impact Weapon . | . . . . . . . Slashing Weapon 1 | . . . . . . 1 Piercing Weapon 1 | . . . . . 1 . Special Melee Weapon . | . . . . . . . Unidentified Prototypes 4 | . . 1 . . 1 2 Parts Lost 12 | . . 3 . . . 9 Power 2 | . . 1 . . . 1 Propulsion 5 | . . 2 . . . 3 Utility 2 | . . . . . . 2 Weapon 3 | . . . . . . 3 Highest Loss Streak 3 | . . 3 . . . 3 To Critical Strikes . | . . . . . . . Average Slot Usage (%) 87 | . 90 97 75 99 99 55 Engine 10 | . 14 13 11 11 10 2 Treads 7 | . 4 23 . . . . Leg 17 | . 23 1 26 33 33 8 Device 3 | . . 1 2 10 5 . Storage 10 | . 14 12 8 11 11 4 Processor 5 | . . . 1 11 11 11 Protection 8 | . 4 14 3 . 5 10 Energy Gun 4 | . 21 . . . 11 2 Ballistic Gun 12 | . 6 18 22 22 9 . Launcher 4 | . . 9 . . . 10 Naked Turns . | . . . . . . . Heaviest Build 91 | 13 89 91 20 21 30 30 Greatest Support 40 | 20 40 40 30 30 30 30 Greatest Overweight (x) 5 | . 2 2 1 . . 5 Average Overweight (x) . | . . 1 . . . 1 Largest Inventory Capacity 25 | . 25 25 10 10 10 10 Average Capacity 13 | . 10 22 8 10 10 6 Most Carried 10 | . 8 10 10 9 10 10 Average Carried 8 | . 6 8 7 8 9 6 Final Capacity 25 | 8 25 5 10 10 10 5 Final Carried 10 | 6 8 3 10 8 10 3 Class Distribution -------------------- 80% | Mutant 11% | Derelict-Mutant 7% | Hacker-Mutant Dominant Class ---------------- Mutant | -10/Materials Mutant | -10/Mines Mutant | -9/Materials Mutant | -9/Mines Mutant | -7/Zion Mutant | -7/Deep Caves Resources | -11 -10 -10 -9 -9 -7 -7 ----------- Run | Jun Mat Min Mat Min Zio Dee Matter Collected 1063 | 200 11 436 169 22 57 168 Remotely . | . . . . . . . Salvage Created 960 | . 65 287 361 48 . 199 Parts 50 | . 7 3 21 7 . 12 Haulers Intercepted . | . . . . . . . Recyclers Shooed . | . . . . . . . Parts Field Recycled . | . . . . . . . Retrieved Matter . | . . . . . . . Parts Self-Destructed 1 | . . . . . 1 . Prevented . | . . . . . . . Kills | -11 -10 -10 -9 -9 -7 -7 ------- Run | Jun Mat Min Mat Min Zio Dee Combat Hostiles Destroyed 39 | . 3 17 7 4 . 8 Melee 1 | . . . . . . 1 Guns 23 | . 3 8 7 4 . 1 AOE 15 | . . 9 . . . 6 Classes Destroyed 10 | . 2 3 3 . . 2 Recycler 2 | . . 2 . . . . Watcher 2 | . 1 . 1 . . . Swarmer 7 | . 3 . . 4 . . Grunt 2 | . . . 2 . . . Brawler 1 | . . . 1 . . . Sentry 4 | . . . 4 . . . Demolisher 2 | . . 2 . . . . Z-Technician 5 | . . . . . . 5 Z-Light 6 | . . . . . . 6 Assembled 16 | . . 15 . . . 1 Best Kill Streak 8 | . 3 8 2 4 . 5 Combat Bots Only 8 | . 3 8 2 4 . 3 Max Kills in Single Turn 2 | . 1 2 1 2 . 2 Gunslinging 1 | . . . . 1 . . Exploded 2 | . . 2 . . . 2 Melee 1 | . . . . . . 1 Uniques/NPCs Destroyed 1 | . . . . . . 1 Z-Imprinter (-7/Deep Caves) Combat | -11 -10 -10 -9 -9 -7 -7 -------- Run | Jun Mat Min Mat Min Zio Dee Damage Taken 2289 | . 44 766 105 31 . 1343 Core 592 | . 12 161 12 7 . 400 Absorbed by Shields . | . . . . . . . Redirected to Shielding 264 | . . 15 . . . 249 Ignored by Resistances 622 | . 14 217 31 10 . 350 Core Remaining (%) 65 | 100 . 30 . . . . Volleys Fired 98 | . 10 45 17 4 . 22 Largest 2 | . 2 2 2 2 . 2 Hottest 135 | . 90 60 43 43 . 135 Shots Fired 170 | . 20 85 34 8 . 23 Gun 131 | . 20 65 34 8 . 4 Cannon . | . . . . . . . Launcher 39 | . . 20 . . . 19 Special . | . . . . . . . Kinetic 110 | . 3 65 34 8 . . Thermal 20 | . 17 . . . . 3 Explosive 39 | . . 20 . . . 19 Electromagnetic 1 | . . . . . . 1 Robot Hit Streak 18 | . 5 10 18 6 . 16 Robot Miss Streak 4 | . 4 3 3 2 . 1 Penetration Max . | . . . . . . . Secondary Targets 2 | . . 1 . 1 . . Max Gunslinging Chain 1 | . . 1 . 1 . . Shots Hit Robots 121 | . 10 60 23 5 . 23 Core Hits 110 | . 4 56 16 4 . 30 Critical Kills . | . . . . . . . Critical Parts Destroyed 1 | . . 1 . . . . Critical Strikes 4 | . 1 1 . . . 2 Burn 2 | . 1 . . . . 1 Destroy 1 | . . 1 . . . . Sever 1 | . . . . . . 1 Melee Attacks 4 | . . . . . 1 3 Impact . | . . . . . . . Slashing 3 | . . . . . . 3 Piercing 1 | . . . . . 1 . Sneak Attacks . | . . . . . . . Combat Hostiles . | . . . . . . . Follow-up Attacks . | . . . . . . . Damage Inflicted 4032 | . 120 1245 301 58 . 2308 Guns 1057 | . 120 502 301 58 . 76 Cannons . | . . . . . . . Explosions 2863 | . . 738 . . . 2125 Melee 107 | . . . . . . 107 Ramming 5 | . . 5 . . . . Kinetic 861 | . . 502 301 58 . . Thermal 603 | . 120 . . . . 483 Explosive 2443 | . . 738 . . . 1705 Electromagnetic 13 | . . . . . . 13 Impact . | . . . . . . . Slashing 107 | . . . . . . 107 Piercing . | . . . . . . . Highest Corruption . | . . . . . . . Average Corruption . | . . . . . . . Corruption Purged . | . . . . . . . Corruption Blocked . | . . . . . . . Overload Shots . | . . . . . . . Overflow Damage 316 | . . 3 . . . 313 Projectiles . | . . . . . . . Explosions 316 | . . 3 . . . 313 Melee . | . . . . . . . Knockbacks . | . . . . . . . Impact . | . . . . . . . Kinetic . | . . . . . . . Secondary . | . . . . . . . Self-Inflicted Damage 327 | . . 23 . . . 304 Shots 3 | . . 2 . . . 1 Rammed 1 | . . 1 . . . . Targets Rammed 1 | . . 1 . . . . Kicked . | . . . . . . . Crushed . | . . . . . . . Highest Temperature 179 | . 150 20 3 . . 179 Average Temperature 58 | . 52 16 3 . . 73 Received Heat Transfer 536 | . . 80 60 . . 396 Siege Activations . | . . . . . . . Robots Corrupted . | . . . . . . . Combat Hostiles . | . . . . . . . Parts Fried . | . . . . . . . Impact Corruptions . | . . . . . . . Robots Melted . | . . . . . . . Combat Hostiles . | . . . . . . . Parts Melted 1 | . 1 . . . . . Heat Transferred 581 | . 396 . . . . 185 Parts Sabotaged . | . . . . . . . Parts Stolen . | . . . . . . . Parts Stripped . | . . . . . . . Power Chain Reactions . | . . . . . . . Missiles Intercepted . | . . . . . . . Alert | -11 -10 -10 -9 -9 -7 -7 ------- Run | Jun Mat Min Mat Min Zio Dee Peak Influence 137 | . 137 136 134 124 . . Initial 45 | . . 45 3 34 . . Average 56 | . 70 37 83 83 . . Maximum Alert Level . | . . . . . . . Low Security (%) 100 | . 100 100 100 100 . . Level 1 . | . . . . . . . Level 2 . | . . . . . . . Level 3 . | . . . . . . . Level 4 . | . . . . . . . Level 5 . | . . . . . . . High Security . | . . . . . . . Max Security . | . . . . . . . Squads Dispatched 2 | . . . 2 . . . Investigation . | . . . . . . . Extermination . | . . . . . . . Reinforcement 2 | . . . 2 . . . Assault . | . . . . . . . Garrison . | . . . . . . . Intercept . | . . . . . . . Searches Triggered . | . . . . . . . Construction Impeded . | . . . . . . . Haulers Reinforced . | . . . . . . . Active Scanning Responses . | . . . . . . . Cargo Convoy Interrupts . | . . . . . . . Stealth | -11 -10 -10 -9 -9 -7 -7 --------- Run | Jun Mat Min Mat Min Zio Dee Distress Signals 2 | . 1 . 1 . . . Communications Jammed . | . . . . . . . Distress Signals . | . . . . . . . Times Spotted 53 | . 7 19 10 4 . 13 Peak Tracking Total 6 | . 4 4 3 4 . 6 Tactical Retreats 2 | . . 2 . . . . Traps | -11 -10 -10 -9 -9 -7 -7 ------- Run | Jun Mat Min Mat Min Zio Dee Traps Triggered . | . . . . . . . Indirectly . | . . . . . . . Trap Hack Attempts . | . . . . . . . Triggered . | . . . . . . . Disarmed . | . . . . . . . Reprogrammed . | . . . . . . . Reused . | . . . . . . . Traps Extracted . | . . . . . . . Installed . | . . . . . . . Triggered . | . . . . . . . Machines | -11 -10 -10 -9 -9 -7 -7 ---------- Run | Jun Mat Min Mat Min Zio Dee Machines Disabled 3 | . . 1 . . . 2 Max in Single Turn 1 | . . 1 . . . 1 Machines Repaired . | . . . . . . . Machines Sabotaged . | . . . . . . . Overloaded Fab Kills . | . . . . . . . Hacking | -11 -10 -10 -9 -9 -7 -7 --------- Run | Jun Mat Min Mat Min Zio Dee Machines Accessed 4 | . 3 . 1 . . . Terminals 4 | . 3 . 1 . . . Fabricators . | . . . . . . . Repair Stations . | . . . . . . . Recycling Units . | . . . . . . . Scanalyzers . | . . . . . . . Garrison Access . | . . . . . . . Total Hacks 11 | . 10 . 1 . . . Successful 3 | . 2 . 1 . . . Failed 8 | . 8 . . . . . Catastrophic 1 | . 1 . . . . . Database Lockouts . | . . . . . . . Manual 16 | . 9 . 1 . 6 . Terminals 11 | . 10 . 1 . . . Fabricators . | . . . . . . . Repair Stations . | . . . . . . . Recycling Units . | . . . . . . . Scanalyzers . | . . . . . . . Garrison Access . | . . . . . . . Terminal Hacks 3 | . 2 . 1 . . . Robot Analysis 1 | . 1 . . . . . Branch Access Points 2 | . 1 . 1 . . . Fabricator Hacks . | . . . . . . . Repair Station Hacks . | . . . . . . . Recycling Unit Hacks . | . . . . . . . Scanalyzer . | . . . . . . . Garrison Access Hacks . | . . . . . . . Unauthorized Hacks . | . . . . . . . Terminals . | . . . . . . . Fabricators . | . . . . . . . Repair Stations . | . . . . . . . Recycling Units . | . . . . . . . Scanalyzers . | . . . . . . . Garrison Access . | . . . . . . . Data Cores Recovered . | . . . . . . . Used . | . . . . . . . Hacking Detections 3 | . 3 . . . . . Full Trace Events 1 | . 1 . . . . . Feedback Events . | . . . . . . . Feedback Blocked . | . . . . . . . Robot Schematics Acquired 3 | . . . . . 3 . Robots Built . | . . . . . . . Authchips . | . . . . . . . Time . | . . . . . . . Total Robot Build Rating . | . . . . . . . Part Schematics Acquired 15 | . . . . . 15 . Parts Built . | . . . . . . . Authchips . | . . . . . . . Time . | . . . . . . . Total Part Build Rating . | . . . . . . . Parts Repaired . | . . . . . . . Time . | . . . . . . . Parts Recycled . | . . . . . . . Recycled Matter . | . . . . . . . Retrieved Matter . | . . . . . . . Retrieved Components . | . . . . . . . Parts Scanalyzed . | . . . . . . . Part Schematics Acquired . | . . . . . . . Parts Damaged . | . . . . . . . Bothacking | -11 -10 -10 -9 -9 -7 -7 ------------ Run | Jun Mat Min Mat Min Zio Dee Used RIF Installer . | . . . . . . . Robots Hacked . | . . . . . . . Non-combat . | . . . . . . . Combat . | . . . . . . . Robot Hacks Applied . | . . . . . . . Relay Couplers Released . | . . . . . . . Fabnet Peak Effective % . | . . . . . . . Robots Rewired . | . . . . . . . Allies Hacked . | . . . . . . . Hacks Repelled . | . . . . . . . Allies | -11 -10 -10 -9 -9 -7 -7 -------- Run | Jun Mat Min Mat Min Zio Dee Total Allies 7 | . . . . 3 4 . Largest Group 7 | . . . . 3 7 4 Highest-Rated Group 197 | . . . . 40 197 77 Highest-Rated Ally 42 | . . . . 16 42 37 Total Orders 4 | . . 4 . . . . EXPLORE 1 | . . 1 . . . . RETURN 3 | . . 3 . . . . Ally Attacks 16 | . . . . . . 16 Total Damage 164 | . . . . . . 164 Kills 2 | . . . . . . 2 Allies Corrupted . | . . . . . . . Allies Melted . | . . . . . . . Intel | -11 -10 -10 -9 -9 -7 -7 ------- Run | Jun Mat Min Mat Min Zio Dee Robot Analysis Total 1 | . 1 . . . . . Derelict Logs Recovered 4 | . . 1 . 2 1 . Drone Launches 3 | . . 3 . . . . Drone Recoveries 3 | . . 3 . . . . Exploration | -11 -10 -10 -9 -9 -7 -7 ------------- Run | Jun Mat Min Mat Min Zio Dee Turns Passed 4841 | . 345 1500 511 388 1237 860 Spaces Moved 2696 | 1 221 422 315 284 981 472 Core 296 | . . 7 . . . 289 Treads 357 | . 19 338 . . . . Legs 2043 | 1 202 77 315 284 981 183 Wheels . | . . . . . . . Hover . | . . . . . . . Flight . | . . . . . . . Fastest Speed 50 | 120 120 100 120 120 120 50 Average Speed 157 | 120 132 292 127 120 120 167 Slowest Speed 320 | 120 320 320 190 120 120 300 Overloaded Moves . | . . . . . . . Propulsion Burnouts . | . . . . . . . Robots Hopped . | . . . . . . . Cave-ins Triggered . | . . . . . . . Exploration Rate (%) 53 | 2 55 70 48 51 91 55 Regions Visited 6 Branch Regions 4 Pre-discovered Areas 5 | . . . . 2 3 . Known Exits Taken 4 | . 1 . 1 1 1 . Unknown Exits Taken 2 | 1 . 1 . . . . Scrap Searched 4 | . . 1 . . 3 . Spaces Dug . | . . . . . . . Terrain Destroyed 120 | . . 91 . . . 29 Melee . | . . . . . . . Projectile . | . . . . . . . AOE 120 | . . 91 . . . 29 Terrain Rammed . | . . . . . . . Walls Destroyed . | . . . . . . . Machines Disabled . | . . . . . . . Actions | -11 -10 -10 -9 -9 -7 -7 --------- Run | Jun Mat Min Mat Min Zio Dee Total 3130 | . 254 606 391 323 1041 515 Wait 244 | . 14 125 41 34 29 1 Move 2690 | . 220 421 314 283 980 472 Hop . | . . . . . . . Pick Up 30 | . 3 3 10 . 11 3 Fast Attach 6 | . 1 1 1 . 1 2 Attach 15 | . 1 2 3 1 2 6 Detach 2 | . . . 2 . . . Swap 18 | . 3 6 1 . 6 2 Drop 22 | . 2 2 2 1 11 4 Fire 98 | . 10 45 17 4 . 22 Melee 4 | . . . . . 1 3 Ram . | . . . . . . . Kick . | . . . . . . . Crush 1 | . . 1 . . . . Escape Stasis . | . . . . . . . Rewire . | . . . . . . . Trap . | . . . . . . . Miscellaneous . | . . . . . . . Route ------- -11/Junkyard -10/Materials (discovered 2 exits: *Mat / *Min) -10/Mines (discovered 2 exits: *Mat x2) -9/Materials (discovered 2 exits: *Mat / *Min) -9/Mines (discovered 3 exits: *Mat x2 / *Zio) -7/Zion (discovered 2 exits: *Dee / [*Pro]) -7/Deep Caves History --------- Turn | Location | Event 1 | -11/Junkyard | Discovered new exit (range 0) 1 | -11/Junkyard | Entered Materials 128 | -10/Materials | Discovered new exit (range 5) 152 | -10/Materials | Identified exit to Mines 324 | -10/Materials | Build established: Mutant 346 | -10/Materials | Entered Mines 387 | -10/Mines | YI-UF0 nonchalantly dropped a Grenade Launcher on the ground 395 | -10/Mines | Met a Derelict bent on vengeance 455 | -10/Mines | Discovered new exit (range 10) 585 | -10/Mines | Learned Materials security intel 1192 | -10/Mines | Assembled infested the area 1275 | -10/Mines | Destroyed 8 combat bots 1316 | -10/Mines | Found the Drone Emporium 1343 | -10/Mines | Found Prototype Device 1417 | -10/Mines | Core integrity fell below 50% 1662 | -10/Mines | Identified Thief Drone Bay 1671 | -10/Mines | Lost 3 parts (1p2n) 1805 | -10/Mines | Discovered new exit (range 7) 1846 | -10/Mines | Entered Materials 1846 | -9/Materials | Evolved 2 slots: Propulsion x1, Utility x1 2063 | -9/Materials | Discovered new exit (range 4) 2123 | -9/Materials | Identified exit to Mines 2357 | -9/Materials | Entered Mines 2387 | -9/Mines | Learned Materials garrison access intel 2521 | -9/Mines | Discovered new exit (range 14) 2544 | -9/Mines | Discovered new exit (range 6) 2550 | -9/Mines | Identified exit to Materials 2641 | -9/Mines | Learned location of Storage (-8) 2682 | -9/Mines | A Derelict revealed a hidden shortcut to a safe place 2707 | -9/Mines | Identified exit to Zion 2724 | -9/Mines | Assisted by bots powering up and referring to "LRC-V3" 2745 | -9/Mines | Entered Zion 2745 | -7/Zion | Accompanied by 3 allies 2815 | -7/Zion | Found GAL Module 2839 | -7/Zion | Acquired unknown access codes intercepted by a Zionite 2844 | -7/Zion | Discovered new exit (range 10) 2877 | -7/Zion | Received a visual enhancement algorithm 3076 | -7/Zion | Given A8's code to call for help 3090 | -7/Zion | Learned location of Quarantine (-3) 3129 | -7/Zion | Found CR-A16's Pointy Stick 3394 | -7/Zion | Given the Hacking Drone Bay 3395 | -7/Zion | Found Prototype Device 3396 | -7/Zion | Identified Hacking Drone Bay 3616 | -7/Zion | Found Prototype Launcher 3681 | -7/Zion | Learned location of Data Miner (-6) 3695 | -7/Zion | Build established: Derelict-Mutant 3696 | -7/Zion | Learned 12 Factory zone layouts 3815 | -7/Zion | Imprinted 3817 | -7/Zion | Declared Zion's savior 3930 | -7/Zion | Opened final containment barrier to the Deep Caves 3949 | -7/Zion | Discovered new exit (range 3) 3949 | -7/Zion | Saw the warning signs outside the Deep Caves entrance 3956 | -7/Zion | Identified exit to Deep Caves 3982 | -7/Zion | Entered Deep Caves 3982 | -7/Deep Caves | Accompanied by 7 allies 4146 | -7/Deep Caves | Identified Gui. Missile Launcher 4194 | -7/Deep Caves | Attacked by Z-Imprinter 4210 | -7/Deep Caves | Destroyed Z-Imprinter 4239 | -7/Deep Caves | Lost 3 parts (1p2n) 4251 | -7/Deep Caves | Z-Facility disabled 4262 | -7/Deep Caves | Build established: Mutant 4764 | -7/Deep Caves | Found Prototype Protection 4764 | -7/Deep Caves | Identified Zio. Weapon Casing 4785 | -7/Deep Caves | Build established: Hacker-Mutant 4816 | -7/Deep Caves | Core integrity fell below 50% 4823 | -7/Deep Caves | Core integrity fell below 20% 4826 | -7/Deep Caves | Found Zio. Weapon Casing 4842 | -7/Deep Caves | Destroyed by LB-N8J(z) with Zionite Laser-S Last Messages --------------- 04259_ Destroyed Aluminum Leg. 04318_ Dropped Med. Storage Unit. 04322_ Missile Launcher destroyed. 04324_ Destroyed Prototype Hover Unit. 04324_ B3-RJ0(z) destroyed. 04328_ Destroyed Prototype Protection. 04328_ FY-9GE(z) destroyed. 04332_ ZJ-UD2(z) destroyed. 04348_ Acquired 10 matter. 04358_ The unstable cave ceiling collapses. 04489_ Acquired Hacking Drone Bay. 04764_ Dropped Mak. Armor Plating. 04764_ Acquired Prototype Protection. 04764_ Identified Zio. Weapon Casing. 04818_ Zio. Weapon Casing destroyed. 04820_ Imp. Grenade Launcher destroyed. 04826_ Acquired Zio. Weapon Casing. 04836_ UI-QGE(z) destroyed. 04838_ 7S-PVP(z) Imp. Reaction Control System severed. 04840_ Zio. Weapon Casing destroyed. Map ----- +----------------------------------------------------+ | | | | | | | | | | | | | | | | | | | | | | | | | ?????????????????????????????????????????????????? | | ?????????????????????????????????????????????????? | | ?????????????????????????? ??????????????????????? | | ?????????????????????????? ????????#####????????? | | ????????????????????????## ###?#### ##???????? | | ??????????????????????### ### ##??#???? | | ??????????????????????# ## ???? | | ??????????????????????? ??? | | ???????????????????????? ??? | | ?????????????????????????# ??? | | ?????????????????????????## ??? | | ????????????????????????## ??? | | ?????????????????????####; z "?? | | ?????????????????????#; @z "?? | | ????????????????????#; zzz "?" | | ????????????????????## !#! "?" | | ?????????????????????####; """ | | ????????????????????????## " | | ????????????????????????# " | | ????????????????????????## | | ??????????????????????#### | | ?????????????????????## # | | ?????????????????????# | | ?????????????????????# | | ?????????????????????# | | ?????????????????????## | | ??????????????????????### | | ????????????????????????# | | ????????????????????????## | | ?????????????????????????# | | ??????????????????????##### | | ?????????????????????## ## | | ?????????#???????????# ## | | ?????????# ??????????# # | | ?????????# ????????## | | ?????????# ######### | | ?????????# # | | ?????????# | +----------------------------------------------------+ Best States ------------- Heat Dissipation 28 Energy Generation 15 Energy Capacity 250 Matter Stores 300 Matter Capacity 300 Sight Range 16 Terrain Scan Density 10 Armor Coverage 100 Resistance: KI 20 Resistance: TH 20 Resistance: EX 20 Resistance: EM 20 Resistance: I 20 Resistance: S 20 Resistance: P 20 Utility Shielding 33 Weapon Shielding 100 Evasion (%) 55 Recoil Reduction 2 Offensive Hacking 21 Item Schematics ----------------- Power Maul | -7/Zion | Archive Mak. Hover Unit | -7/Zion | Archive Mak. Flight Unit | -7/Zion | Archive Thermic Laser | -7/Zion | Archive Component Analysis Suite | -7/Zion | Archive Hpw. Shock Rifle | -7/Zion | Archive Mak. Sword | -7/Zion | Archive Mak. Transmission Jammer | -7/Zion | Archive Imp. Salvage Targeting Computer | -7/Zion | Archive Wave Gun | -7/Zion | Archive Adv. Cooling System | -7/Zion | Archive Hvy. Laser | -7/Zion | Archive Imp. Medium Treads | -7/Zion | Archive Imp. KE Penetrator | -7/Zion | Archive Drone Bay | -7/Zion | Archive Robot Schematics ------------------ S-27 Virus | -7/Zion | Archive H-55 Commando | -7/Zion | Archive R-06 Scavenger | -7/Zion | Archive Fabricated ------------ Nothing Alien Tech Used ----------------- None Achievements -------------- None Challenges ------------ None Game ------ Seed CorruptionStealthCannon Manual? 0 Play Time 00:46:50 Cumulative 349.6 hours Start 2023.07.10 @ 13:42:44 End 2023.07.10 @ 18:44:54 Sessions 1 Manual Loads 0 Difficulty Adventurer Special Mode None Game No. 278 Rogue 195 Adventurer 83 Explorer 0 Win Type - Total 2 Types 1/0/0/1/0/0/0/0/0 Lore% 49 Gallery% 70 Achievement% 50 Wizard Run 0 Options --------- ASCII 0 Keyboard 0 Movement Mouse Keybinds 0 Fullscreen 1 Font 24/Smallcaps Map View 76x50 Tactical HUD 1 Map Filters NONE Filters NONE Steam 1 RUN: 289a1658-17aa-4fed-b5fc-7d47e9eb7fca